bitfinex/quotes_SOLUSD_20260109
["timestamp","ask_amount","ask_price","bid_price","bid_amount"]
[1767954607024,0.67897652,138.68,138.66,1e-08]
[1767954607748,0.18143468,138.67,138.66,1e-08]
[1767954608055,2.23754403,138.68,138.66,1e-08]
[1767954608565,2.23754403,138.67,138.64,0.72078382]
[1767954609060,7.21188518,138.66,138.64,0.72078382]
[1767954609764,7.21188518,138.66,138.63,0.72078382]
[1767954609928,10.13866168,138.66,138.62,0.92078382]
[1767954610538,2.23754403,138.65,138.62,0.92078382]
[1767954610843,2.34942532,138.65,138.62,0.92078382]
[1767954611048,9.56221034,138.65,138.62,0.92078382]
[1767954611461,0.68923247,138.64,138.61,0.2]
[1767954611762,0.68923247,138.62,138.61,1e-08]
[1767954614257,0.65923242,138.62,138.61,1e-08]
[1767954615649,0.65923242,138.62,138.56,0.2]
[1767954615650,78.95380107,138.62,138.56,0.2]
[1767954615842,78.95380107,138.62,138.55,0.2]
[1767954615843,2.23754403,138.58,138.55,0.92078382]
[1767954616144,13.16,138.6,138.57,2.95832785]
[1767954616451,0.65302766,138.61,138.57,2.95832785]
[1767954616961,0.65302766,138.61,138.57,0.72078382]
[1767954617335,7.21500721,138.6,138.57,0.72078382]
[1767954617557,0.65302766,138.65,138.6,0.72078382]
[1767954617855,0.65302766,138.65,138.56,18.04199565]
[1767954617856,7.21240533,138.65,138.62,0.72078382]
[1767954618855,7.86503558,138.66,138.62,0.72078382]
[1767954620461,10.10257961,138.66,138.62,0.72078382]
[1767954620954,7.86503558,138.66,138.62,0.72078382]
[1767954621156,10.10257961,138.66,138.62,0.72078382]
[1767954623967,2.23754403,138.65,138.62,0.72078382]
[1767954624264,2.89057169,138.64,138.61,0.72078382]
[1767954624850,0.65302766,138.64,138.61,0.72078382]
[1767954625057,7.86612989,138.64,138.61,0.72078382]
[1767954625561,7.21310223,138.64,138.61,0.72078382]
[1767954625947,9.45064626,138.64,138.61,0.72078382]
[1767954626756,10.10367392,138.64,138.6,0.72078382]
[1767954627553,9.45064626,138.64,138.6,0.72078382]
[1767954627757,7.21310223,138.64,138.6,0.72078382]
[1767954630172,9.45064626,138.64,138.6,0.72078382]
[1767954630674,28.13598782,138.64,138.6,0.72078382]
[1767954630846,2.89057169,138.63,138.6,0.72078382]
[1767954631860,7.21396623,138.62,138.6,0.72078382]
[1767954632772,10.10453792,138.62,138.58,0.70531593]
[1767954633075,2.23754403,138.61,138.58,0.70531593]
[1767954633456,0.65302766,138.62,138.58,0.70531593]
[1767954633662,7.21374573,138.63,138.6,0.70531593]
[1767954634680,25.24558404,138.64,138.6,0.70531593]
[1767954635261,25.8986117,138.64,138.6,0.70531593]
[1767954639380,7.86694289,138.63,138.6,0.70531593]
[1767954644284,25.90055754,138.63,138.6,0.70531593]
[1767954651183,28.13810157,138.63,138.6,0.70531593]
[1767954654590,25.90055754,138.63,138.6,0.70531593]
[1767954660185,7.21317836,138.64,138.6,0.70531593]
[1767954660387,7.21317836,138.64,138.61,0.69997868]
[1767954665001,10.71439655,138.64,138.61,0.69997868]
[1767954668201,3.50121819,138.64,138.61,0.69997868]
[1767954672000,10.714268,138.64,138.61,0.69997868]
[1767954677601,11.36175538,138.64,138.61,0.69997868]
[1767954678812,7.86053719,138.64,138.61,0.69997868]
[1767954679200,7.21304981,138.64,138.61,0.69997868]
[1767954684012,11.36175538,138.64,138.61,0.69997868]
[1767954684317,11.36729566,138.64,138.61,0.69997868]
[1767954687515,3.60021819,138.63,138.6,0.71737375]
[1767954687726,25.24536371,138.64,138.56,62.1]
[1767954687727,4.14870557,138.62,138.59,0.71737375]
[1767954688919,11.36314123,138.62,138.59,0.71737375]
[1767954689425,0.10448487,138.61,138.58,0.71737375]
[1767954690303,11.36868151,138.62,138.58,0.71737375]
[1767954690616,7.86746332,138.62,138.58,0.71737375]
[1767954690803,11.36868151,138.62,138.58,0.71737375]
[1767954694025,0.099,138.61,138.58,0.71737375]
[1767954695927,11.36868151,138.62,138.58,0.71737375]
[1767954696326,0.099,138.61,138.58,0.71737375]
[1767954698030,11.36868151,138.62,138.58,0.71737375]
[1767954699326,7.86746332,138.62,138.58,0.71737375]
[1767954699520,7.21374008,138.63,138.6,0.65700575]
[1767954700313,7.31274008,138.63,138.6,0.65700575]
[1767954700824,3.60021819,138.63,138.6,0.65700575]
[1767954701638,0.64748738,138.62,138.59,0.65700575]
[1767954701826,4.14870557,138.62,138.59,0.65700575]
[1767954703437,7.21448668,138.61,138.59,0.65700575]
[1767954704436,10.71570487,138.61,138.59,0.65700575]
[1767954704733,0.10986059,138.59,138.56,0.65700575]
[1767954704914,3.61107878,138.59,138.56,0.65700575]
[1767954705418,7.21604849,138.58,138.56,0.65700575]
[1767954707127,7.85278388,138.58,138.55,0.85924783]
[1767954711727,11.37001674,138.59,138.56,0.65924783]
[1767954712732,22.18991036,138.62,138.58,0.65924783]
[1767954712937,0.099,138.61,138.57,3.50121819]
[1767954713841,0.69944088,138.6,138.56,10.71812822]
[1767954714038,7.21552781,138.59,138.56,3.50121819]
[1767954714340,7.91466007,138.6,138.56,3.50121819]
[1767954714944,7.91466007,138.6,138.57,0.65924783]
[1767954717546,0.69944088,138.59,138.56,0.65924783]
[1767954718132,10.15608164,138.6,138.56,0.65924783]
[1767954718951,7.91396707,138.61,138.58,0.65924783]
[1767954721148,10.15538864,138.61,138.58,0.65924783]
[1767954721554,0.69944088,138.6,138.58,0.65924783]
[1767954721755,2.24142157,138.59,138.55,0.85924783]
[1767954722357,2.24142157,138.59,138.56,0.65924783]
[1767954722733,2.24142157,138.58,138.56,0.65924783]
[1767954722934,2.24142157,138.58,138.55,0.2]
[1767954723134,9.45810772,138.57,138.55,0.2]
[1767954723634,9.45810772,138.57,138.54,0.2]
[1767954723635,2.93093795,138.56,138.54,0.2]
[1767954723845,2.93093795,138.56,138.53,0.2]
[1767954723846,0.68583151,138.55,138.53,0.2]
[1767954724158,2.24142157,138.55,138.53,0.90763763]
[1767954724455,2.93093795,138.56,138.53,0.90763763]
[1767954725153,7.21668615,138.57,138.54,0.70763763]
[1767954725860,7.90578728,138.58,138.55,0.70763763]
[1767954726754,7.2162709,138.58,138.55,0.70763763]
[1767954727145,7.90377044,138.58,138.55,0.70763763]
[1767954727449,10.14519201,138.58,138.55,0.70763763]
[1767954728557,9.9482068,138.57,138.54,0.70763763]
[1767954735765,0.49178514,138.55,138.53,0.2]
[1767954735957,2.73320671,138.55,138.53,1e-08]
[1767954736161,2.24142157,138.54,138.53,1e-08]
[1767954736354,10.14313895,138.54,138.52,1e-08]
[1767954738751,9.9537777,138.53,138.5,0.90763763]
[1767954739170,2.24142157,138.52,138.5,0.90763763]
[1767954739568,2.21142154,138.52,138.5,0.90763763]
[1767954739766,2.21142154,138.52,138.5,0.2]
[1767954739767,2.89310816,138.52,138.5,0.2]
[1767954740168,10.11276529,138.52,138.5,0.2]
[1767954740551,10.11276529,138.52,138.49,0.90763763]
[1767954742272,9.43107867,138.52,138.5,0.70763763]
[1767954743567,7.21891791,138.53,138.5,0.70763763]
[1767954753161,18.73172725,138.57,138.53,0.65714883]
[1767954753362,20.97314882,138.57,138.53,0.65714883]
[1767954753775,0.48751128,138.56,138.53,0.65714883]
[1767954754284,7.70460134,138.56,138.53,0.65714883]
[1767954754471,7.21709006,138.56,138.53,2.8985704]
[1767954754674,7.21709006,138.56,138.54,0.65714883]
[1767954757691,7.90490662,138.56,138.53,2.8985704]
[1767954757983,7.90490662,138.56,138.53,0.65714883]
[1767954758380,7.90490662,138.56,138.53,2.8985704]
[1767954758887,7.21709006,138.56,138.54,0.65714883]
[1767954759778,7.70460134,138.56,138.53,2.8985704]
[1767954759970,7.70460134,138.56,138.53,0.65714883]
[1767954760785,7.21709006,138.56,138.53,0.65714883]
[1767954761667,7.70460134,138.56,138.53,0.65714883]
[1767954762786,7.21709006,138.56,138.53,0.65714883]
[1767954763676,7.70460134,138.56,138.53,0.65714883]
[1767954764889,7.21709006,138.56,138.53,0.65714883]
[1767954765789,7.70460134,138.56,138.53,0.65714883]
[1767954768788,7.21709006,138.56,138.53,0.65714883]
[1767954770495,7.72420033,138.56,138.53,0.65714883]
[1767954770800,7.21709006,138.56,138.53,0.65714883]
[1767954771383,7.21709006,138.56,138.53,2.8985704]
[1767954771581,7.21709006,138.56,138.54,0.66226724]
[1767954771784,7.72420033,138.56,138.53,2.90368881]
[1767954772384,7.72420033,138.56,138.53,0.66226724]
[1767954772696,7.21709006,138.56,138.53,0.66226724]
[1767954773695,7.72420033,138.56,138.53,0.66226724]
[1767954773902,7.72420033,138.56,138.53,2.90368881]
[1767954774086,0.66841356,138.55,138.53,2.90368881]
[1767954774596,7.88661213,138.57,138.54,0.66226724]
[1767954774896,7.88629514,138.58,138.55,2.90368881]
[1767954775093,7.88629514,138.58,138.55,0.66226724]
[1767954775272,7.88629514,138.58,138.55,2.90368881]
[1767954775474,0.50711027,138.57,138.55,2.90368881]
[1767954775779,7.21625225,138.58,138.55,2.90368881]
[1767954776901,7.72336252,138.58,138.55,2.90368881]
[1767954778576,7.72336252,138.58,138.55,4.16488149]
[1767954779087,7.72336252,138.58,138.55,0.66226724]
[1767954779881,11.22597677,138.58,138.55,0.66226724]
[1767954780785,0.66841356,138.57,138.53,4.16488149]
[1767954781984,0.66841356,138.57,138.54,0.66226724]
[1767954783698,7.21709006,138.56,138.54,0.66226724]
[1767954784799,7.72581337,138.56,138.54,0.66226724]
[1767954785001,7.72581337,138.56,138.53,4.19767479]
[1767954785809,7.90570818,138.57,138.54,0.69506054]
[1767954786981,0.48820518,138.56,138.53,4.19767479]
[1767954788009,0.48820518,138.56,138.53,0.69506054]
[1767954788305,0.48820518,138.56,138.54,3.50261425]
[1767954789486,7.21705605,138.57,138.55,0.69506054]
[1767954790885,0.48820518,138.57,138.55,0.69506054]
[1767954791509,7.70425367,138.58,138.55,0.69506054]
[1767954792591,7.90372384,138.57,138.54,4.19767479]
[1767954793092,0.49019443,138.56,138.53,11.41617982]
[1767954793493,0.48820518,138.56,138.53,0.69506054]
[1767954795417,7.90518743,138.58,138.55,0.69506054]
[1767954796509,0.48820518,138.57,138.54,4.19767479]
[1767954796818,7.70478808,138.57,138.54,0.69506054]
[1767954797297,0.68913894,138.58,138.55,0.69506054]
[1767954797794,99.48407197,138.59,138.55,0.69506054]
[1767954797795,95.98145772,138.59,138.55,0.69506054]
[1767954797992,7.21511602,138.6,138.57,0.69506054]
[1767954798398,0.6871296,138.6,138.57,0.69506054]
[1767954799117,0.6871296,138.6,138.57,4.19767479]
[1767954799309,0.48820518,138.61,138.58,4.19767479]
[1767954799495,7.90315906,138.62,138.58,4.19767479]
[1767954799696,7.90315906,138.62,138.59,0.69506054]
[1767954800912,7.90315906,138.62,138.58,3.50261425]
[1767954800913,0.48820518,138.61,138.58,3.50261425]
[1767954801224,0.48820518,138.61,138.58,4.19767479]
[1767954801921,7.21402012,138.62,138.59,0.69506054]
[1767954802422,7.7022253,138.62,138.59,0.69506054]
[1767954802996,7.7022253,138.62,138.58,4.19767479]
[1767954803314,0.6871296,138.61,138.58,4.19767479]
[1767954804098,7.90315906,138.62,138.59,0.69506054]
[1767954805219,0.48820518,138.61,138.58,4.19767479]
[1767954805817,0.48820518,138.61,138.58,3.50261425]
[1767954806000,7.90315906,138.62,138.59,0.69506054]
[1767954806520,11.40543629,138.63,138.59,0.69506054]
[1767954810226,10.71629735,138.63,138.59,0.69506054]
[1767954810418,0.68913894,138.62,138.59,0.69506054]
[1767954811329,7.90282204,138.63,138.59,4.19767479]
[1767954811747,0.48820518,138.62,138.59,4.19767479]
[1767954811926,7.2136831,138.63,138.61,0.69506054]
[1767954812129,7.70188828,138.63,138.6,4.19767479]
[1767954812331,7.70188828,138.63,138.6,0.69506054]
[1767954812518,7.2136831,138.63,138.6,0.69506054]
[1767954814330,110.30136744,138.64,138.61,0.68519666]
[1767954814331,7.21325051,138.64,138.61,0.68519666]
[1767954814835,0.14216157,138.68,138.61,0.62519668]
[1767954815011,0.2,138.72,138.7,3.76474572]
[1767954815211,3.7626561,138.74,138.71,3.50261425]
[1767954815427,0.07360272,138.75,138.73,3.50261425]
[1767954815630,0.07360272,138.75,138.72,3.50261425]
[1767954815826,0.70609635,138.73,138.7,3.67834863]
[1767954816818,0.70609635,138.72,138.7,3.67834863]
[1767954818533,0.70609635,138.7,138.66,13.84519666]
[1767954818839,0.70609635,138.7,138.66,24.55959137]
[1767954821335,0.70609635,138.72,138.68,4.18781091]
[1767954822840,0.77969907,138.75,138.7,4.18781091]
[1767954823136,0.70609635,138.74,138.7,4.18781091]
[1767954824537,7.91388537,138.74,138.7,4.18781091]
[1767954824942,11.41649962,138.74,138.7,0.68519666]
[1767954825233,4.2087106,138.74,138.7,7.8946985]
[1767954825636,3.83244499,138.74,138.7,7.8946985]
[1767954825839,7.28122138,138.75,138.72,0.68519666]
[1767954825840,0.07360272,138.75,138.72,0.68519666]
[1767954826641,3.50261425,138.74,138.7,0.68519666]
[1767954826840,3.50261425,138.74,138.69,20.37025242]
[1767954827025,3.50261425,138.74,138.69,21.05544908]
[1767954827745,0.77170728,138.74,138.7,0.68519666]
[1767954828050,7.9794618,138.74,138.7,0.68519666]
[1767954828621,4.15728855,138.73,138.69,13.87601087]
[1767954828822,0.6546743,138.72,138.69,13.87601087]
[1767954831541,0.6546743,138.72,138.69,0.71601087]
[1767954833367,4.15728855,138.72,138.69,0.71601087]
[1767954834161,0.6546743,138.72,138.69,0.71601087]
[1767954838951,0.6546743,138.74,138.71,0.71601087]
[1767954839128,0.72827702,138.75,138.71,0.71601087]
[1767954839326,7.93557985,138.75,138.71,2.95359173]
[1767954840658,7.93557985,138.75,138.71,10.16275777]
[1767954840951,0.2,138.76,138.75,0.71601087]
[1767954841143,0.7546743,138.78,138.75,2.95359173]
[1767954841348,0.1,138.78,138.75,2.95359173]
[1767954841652,0.7546743,138.78,138.75,2.95359173]
[1767954842129,7.96056535,138.78,138.75,0.71601087]
[1767954842330,10.19814621,138.78,138.74,13.87601087]
[1767954844057,7.96056535,138.78,138.74,16.11359173]
[1767954845452,7.96056535,138.78,138.75,2.23758086]
[1767954848462,0.72150298,138.77,138.75,2.23758086]
[1767954849461,0.72150298,138.77,138.74,15.39758086]
[1767954849659,0.72150298,138.74,138.7,15.39758086]
[1767954850664,0.72150298,138.74,138.7,22.60722093]
[1767954850966,0.72150298,138.74,138.71,2.23758086]
[1767954851263,0.72150298,138.74,138.72,2.23758086]
[1767954853458,0.72150298,138.74,138.71,2.23758086]
[1767954853642,0.72150298,138.74,138.71,2.90070478]
[1767954853842,7.92907437,138.75,138.71,2.90070478]
[1767954854342,7.9293247,138.74,138.71,2.23758086]
[1767954855460,7.9293247,138.74,138.71,2.90070478]
[1767954856361,7.9293247,138.74,138.7,16.06070478]
[1767954856749,0.72150298,138.73,138.7,15.39758086]
[1767954857052,0.72150298,138.73,138.7,13.16]
[1767954858761,0.72150298,138.73,138.7,15.39758086]
[1767954859177,0.72150298,138.73,138.7,13.16]
[1767954860170,0.72150298,138.73,138.7,13.82312392]
[1767954860868,0.72150298,138.73,138.63,5.99092478]
[1767954860869,0.72150298,138.72,138.63,5.99092478]
[1767954861069,0.72150298,138.63,138.58,0.66312392]
[1767954861272,2.23758086,138.67,138.57,0.66312392]
[1767954861273,2.23758086,138.6,138.57,0.66312392]
[1767954861456,2.23758086,138.61,138.57,0.66312392]
[1767954861659,2.23758086,138.61,138.56,7.98017087]
[1767954861847,2.23758086,138.61,138.56,0.76312392]
[1767954862054,0.28432314,138.64,138.56,0.76312392]
[1767954862268,2.23758086,138.61,138.56,0.76312392]
[1767954862468,2.23758086,138.6,138.56,0.76312392]
[1767954862972,7.21552781,138.59,138.56,0.76312392]
[1767954863273,7.18552781,138.59,138.56,0.76312392]
[1767954863854,9.42310867,138.59,138.56,0.76312392]
[1767954864863,7.21465011,138.61,138.56,0.76312392]
[1767954865076,7.21465011,138.61,138.57,0.66312392]
[1767954865777,7.21436743,138.62,138.58,0.66312392]
[1767954866855,9.45194829,138.62,138.58,0.66312392]
[1767954874280,6.48848705,138.63,138.62,0.67194381]
[1767954875070,7.21292556,138.64,138.61,0.67194381]
[1767954875471,7.89867829,138.64,138.6,2.90952467]
[1767954876467,7.21292556,138.64,138.61,0.67194381]
[1767954876983,9.45050642,138.64,138.61,0.67194381]
[1767954880369,7.21292556,138.64,138.61,0.67194381]
[1767954880683,88.76561953,138.66,138.63,0.67194381]
[1767954880869,0.68575273,138.67,138.63,0.67194381]
[1767954881187,2.92333359,138.67,138.63,0.67194381]
[1767954881873,9.44969994,138.66,138.63,0.67194381]
[1767954882074,7.21211908,138.66,138.63,0.67194381]
[1767954887573,0.66598468,138.66,138.63,0.67194381]
[1767954888688,7.21136511,138.67,138.63,0.67194381]
[1767954888990,7.87734979,138.67,138.63,0.67194381]
[1767954889296,7.87734979,138.67,138.63,2.90952467]
[1767954890192,7.87734979,138.67,138.64,0.69736241]
[1767954890385,7.21108894,138.68,138.66,2.93494327]
[1767954890891,7.21108894,138.68,138.66,0.69736241]
[1767954892085,7.87642406,138.69,138.66,0.69736241]
[1767954896294,2.90356554,138.68,138.64,2.93494327]
[1767954896597,0.66598468,138.67,138.64,0.69736241]
[1767954897499,7.87768817,138.67,138.64,0.69736241]
[1767954897802,7.87768817,138.67,138.64,2.93494327]
[1767954900489,7.87768817,138.67,138.64,4.19580883]
[1767954900988,7.87768817,138.67,138.63,3.49844642]
[1767954901180,0.66598468,138.66,138.63,4.19580883]
[1767954902004,0.66598468,138.66,138.64,3.49844642]
[1767954902205,0.66598468,138.66,138.63,4.19580883]
[1767954902599,0.66598468,138.66,138.64,3.49844642]
[1767954903609,7.87807401,138.66,138.63,0.69736241]
[1767954903899,7.87807401,138.66,138.63,4.19580883]
[1767954904600,0.65366417,138.65,138.63,3.49844642]
[1767954905604,7.8657535,138.66,138.63,4.18255234]
[1767954906298,7.8657535,138.66,138.34,422.95641494]
[1767954906299,0.65366417,138.64,138.55,0.88410592]
[1767954906503,0.65366417,138.63,138.62,3.49844642]
[1767954906989,0.65366417,138.63,138.61,3.49844642]
[1767954907493,0.65366417,138.64,138.59,7.2152826]
[1767954907695,0.65366417,138.64,138.6,3.49844642]
[1767954908300,0.65366417,138.64,138.6,0.68410592]
[1767954909203,0.65366417,138.6,138.57,0.68410592]
[1767954909409,3.49844642,138.61,138.57,0.68410592]
[1767954909410,0.65366417,138.61,138.57,0.68410592]
[1767954910304,4.15211059,138.61,138.57,0.68410592]
[1767954910911,4.12211058,138.61,138.57,0.68410592]
[1767954911210,11.33687876,138.61,138.57,0.68410592]
[1767954913095,3.49844642,138.58,138.56,0.1]
[1767954913496,4.15211059,138.59,138.56,0.1]
[1767954914914,4.15211059,138.58,138.56,0.1]
[1767954915208,0.65366417,138.58,138.56,0.1]
[1767954915702,0.65366417,138.6,138.56,4.28255234]
[1767954917815,0.65366417,138.59,138.56,4.28255234]
[1767954919825,0.65366417,138.59,138.56,0.78410592]
[1767954920525,7.86935712,138.59,138.56,0.78410592]
[1767954924115,0.65366417,138.58,138.56,0.1]
[1767954927930,0.65366417,138.57,138.56,0.1]
[1767954928106,4.15211059,138.57,138.56,1e-08]
[1767954928306,0.65366417,138.57,138.56,1e-08]
[1767954928499,0.65366417,138.57,138.55,1e-08]
[1767954930029,7.87075423,138.56,138.55,1e-08]
[1767954947932,7.84075423,138.56,138.55,1e-08]
[1767954949540,0.65366417,138.56,138.55,1e-08]
[1767954949739,7.88060035,138.58,138.55,0.70314034]
[1767954949919,0.66440609,138.58,138.55,0.70314034]
[1767954951047,0.66440609,138.58,138.55,4.20158676]
[1767954952245,0.66440609,138.58,138.55,0.70314034]
[1767954960455,7.87961066,138.6,138.56,0.70314033]
[1767954960759,7.87961066,138.6,138.57,4.20158675]
[1767954961337,7.87961066,138.6,138.57,0.70314033]
[1767954963240,7.87961066,138.6,138.57,2.94447217]
[1767954963557,7.87961066,138.6,138.57,0.70314033]
[1767954965764,7.87961066,138.6,138.57,2.94447217]
[1767954969065,0.66440609,138.6,138.57,2.94447217]
[1767954969245,0.66440609,138.6,138.58,0.67865395]
[1767954969446,7.90079439,138.61,138.58,0.67865395]
[1767954970472,0.68606643,138.6,138.58,0.67865395]
[1767954970766,0.68606643,138.6,138.57,2.91998579]
[1767954972067,0.68606643,138.6,138.57,0.67865395]
[1767954972268,0.68606643,138.6,138.57,2.91998579]
[1767954973268,0.68606643,138.59,138.56,2.91998579]
[1767954973564,0.68606643,138.59,138.56,0.67865395]
[1767954973755,0.68606643,138.58,138.55,13.18000001]
[1767954974571,0.68606643,138.58,138.55,13.85865396]
[1767954976072,0.68606643,138.58,138.55,16.0999858]
[1767954977252,7.9013262,138.6,138.56,0.67865395]
[1767954977454,7.90078817,138.61,138.58,2.91998579]
[1767954977674,7.90078817,138.61,138.58,0.67865395]
[1767954978269,7.90078817,138.61,138.58,2.91998579]
[1767954978478,0.68606643,138.6,138.56,7.89536922]
[1767954978669,0.68606643,138.6,138.58,2.24133184]
[1767954979174,0.68606643,138.6,138.57,2.24133184]
[1767954979874,0.68606643,138.6,138.57,10.13651987]
[1767954980977,7.21472174,138.61,138.59,2.24133184]
[1767954980978,0.68606643,138.61,138.59,2.24133184]
[1767954983476,7.89976389,138.63,138.59,2.91998579]
[1767954983680,7.89976389,138.63,138.59,0.67865395]
[1767954983876,7.89976389,138.63,138.59,2.91998579]
[1767954985276,10.14109573,138.63,138.59,2.91998579]
[1767954985470,7.90008714,138.62,138.59,0.67865395]
[1767954985981,0.68606643,138.61,138.58,23.31597024]
[1767954987183,7.90008714,138.62,138.59,0.67865395]
[1767954988286,10.14141898,138.62,138.59,0.67865395]
[1767954988580,89.04994267,138.66,138.59,0.67865395]
[1767954988880,2.24133184,138.62,138.59,0.67865395]
[1767954989277,2.92739827,138.62,138.59,0.61865397]
[1767954990905,0.68606643,138.6,138.55,1e-08]
[1767954991188,2.92739827,138.59,138.56,0.67865395]
[1767954991978,0.68606643,138.6,138.57,0.67865395]
[1767954993392,7.90124308,138.6,138.57,0.67865395]
[1767954993583,7.90124308,138.6,138.57,0.61865397]
[1767954994868,0.69530612,138.57,138.55,1e-08]
[1767954995267,2.93663796,138.57,138.55,1e-08]
[1767954996689,27.49402652,138.6,138.55,1e-08]
[1767954996690,0.69530612,138.58,138.55,1e-08]
[1767954996991,0.69530612,138.58,138.55,0.66975293]
[1767954997182,0.69530612,138.58,138.55,2.91108477]
[1767955000279,0.69530612,138.58,138.55,2.24133185]
[1767955001793,0.69530612,138.58,138.55,1e-08]
[1767955001995,0.69530612,138.58,138.55,2.91108477]
[1767955007414,0.65255525,138.59,138.56,0.71355642]
[1767955007707,0.65255525,138.59,138.55,2.24133185]
[1767955008481,0.65255525,138.58,138.55,9.45894231]
[1767955010804,0.65255525,138.58,138.55,7.21761047]
[1767955011008,0.65255525,138.58,138.55,9.45894231]
[1767955011310,0.65255525,138.58,138.55,7.21761047]
[1767955011503,0.65255525,138.58,138.55,9.45894231]
[1767955011703,7.86836236,138.59,138.56,0.71355642]
[1767955013310,0.65255525,138.68,138.58,4.48266368]
[1767955013511,0.65255525,138.65,138.6,10.1096942]
[1767955013703,0.62631757,138.65,138.61,15.42133184]
[1767955013888,7.21119966,138.68,138.62,2.26756952]
[1767955013889,9.4525315,138.68,138.62,2.26756952]
[1767955014387,9.45188632,138.69,138.64,2.24133184]
[1767955015308,18.02527619,138.7,138.65,2.24133184]
[1767955015694,0.65255525,138.69,138.65,2.24133184]
[1767955016009,0.65255525,138.69,138.64,2.24133184]
[1767955016593,0.65255525,138.68,138.6,0.02623768]
[1767955016892,0.65255525,138.68,138.62,15.42133184]
[1767955017406,0.65255525,138.66,138.62,15.42133184]
[1767955018914,7.21136511,138.67,138.62,15.42133184]
[1767955018915,0.65255525,138.67,138.65,2.24133184]
[1767955019112,0.65255525,138.67,138.62,20.42014137]
[1767955019326,0.65255525,138.67,138.65,2.24133184]
[1767955019628,18.02497799,138.7,138.66,2.24133184]
[1767955019830,88.76561953,138.71,138.67,2.24133184]
[1767955020615,7.20928555,138.71,138.67,2.24133184]
[1767955021115,7.20928555,138.71,138.68,2.24133184]
[1767955021692,0.65255525,138.7,138.66,7.92536231]
[1767955021934,0.65255525,138.7,138.68,2.24133184]
[1767955022604,0.65255525,138.7,138.68,1.29768002]
[1767955022801,0.65255525,138.7,138.66,7.21180589]
[1767955023106,0.65255525,138.7,138.68,2.24133184]
[1767955024522,0.65255525,138.7,138.68,3.49669066]
[1767955025495,7.7618408,138.71,138.68,3.49669066]
[1767955025807,7.20928555,138.71,138.69,3.49669066]
[1767955026713,18.77519144,138.72,138.69,4.17923202]
[1767955026714,0.299,138.72,138.69,4.17923202]
[1767955026900,7.50813542,138.72,138.69,4.17923202]
[1767955027099,7.40913542,138.72,138.69,4.17923202]
[1767955027301,7.50813542,138.72,138.68,3.49669066]
[1767955027605,7.50813542,138.72,138.67,0.68254136]
[1767955027919,7.50813542,138.72,138.68,4.17923202]
[1767955028222,11.00482608,138.72,138.68,4.17923202]
[1767955028833,7.50813542,138.72,138.68,4.17923202]
[1767955030221,18.12012882,138.73,138.71,3.49669066]
[1767955030421,0.099,138.73,138.71,3.49669066]
[1767955030598,0.75255525,138.74,138.71,3.49669066]
[1767955031922,7.96077251,138.74,138.71,3.49669066]
[1767955032998,25.98008921,138.74,138.7,4.17923202]
[1767955042937,25.98008921,138.74,138.7,0.68254136]
[1767955043123,29.47677987,138.74,138.7,4.17923202]
[1767955044841,0.1034902,138.71,138.67,3.49669066]
[1767955045142,7.21032518,138.69,138.66,4.17923202]
[1767955046740,0.55255525,138.72,138.68,4.17923202]
[1767955046918,0.099,138.71,138.68,4.17923202]
[1767955047836,7.30854331,138.71,138.68,3.49669066]
[1767955048634,7.30854331,138.71,138.67,0.68254136]
[1767955048945,7.30854331,138.71,138.68,3.49669066]
[1767955048946,0.099,138.71,138.68,3.49669066]
[1767955049125,0.099,138.71,138.67,4.17923202]
[1767955051446,0.099,138.71,138.67,0.68254136]
[1767955051634,0.099,138.71,138.68,3.49669066]
[1767955052039,0.099,138.71,138.67,4.17923202]
[1767955052544,0.099,138.71,138.67,0.68254136]
[1767955052728,0.099,138.71,138.67,4.17923202]
[1767955052927,0.099,138.71,138.67,0.68254136]
[1767955053131,0.1034902,138.69,138.65,0.6835978]
[1767955053328,0.54357439,138.68,138.65,4.18028846]
[1767955053846,0.54357439,138.68,138.65,0.6835978]
[1767955054249,7.75479793,138.68,138.65,0.6835978]
[1767955054545,0.10789105,138.67,138.64,0.6835978]
[1767955054750,29.28758222,138.68,138.64,4.18028846]
[1767955055146,29.28758222,138.68,138.64,0.6835978]
[1767955055541,29.28758222,138.68,138.65,0.6835978]
[1767955055733,7.21122354,138.68,138.65,0.6835978]
[1767955056934,7.21122354,138.68,138.65,4.18028846]
[1767955058649,7.31022354,138.68,138.65,4.18028846]
[1767955059052,0.099,138.68,138.65,4.18028846]
[1767955059230,0.099,138.68,138.65,0.6835978]
[1767955059549,0.099,138.68,138.65,4.18028846]
[1767955061352,0.099,138.68,138.65,0.6835978]
[1767955063736,10.80601584,138.69,138.65,0.6835978]
[1767955066666,28.8318288,138.69,138.65,0.6835978]
[1767955068398,4.04026505,138.66,138.62,0.68330126]
[1767955068777,4.01026505,138.66,138.63,0.68330126]
[1767955070289,11.22264839,138.66,138.63,0.68330126]
[1767955073386,11.25264839,138.66,138.63,0.68330126]
[1767955081403,7.75595773,138.66,138.63,0.68330126]
[1767955081609,11.25264839,138.66,138.63,0.68330126]
[1767955086008,7.21238334,138.66,138.63,0.68330126]